fUST/lending_fUST_20250518
["ID","MTS","AMOUNT","RATE_DAILY","PERIOD"]
[361390115,1747547448977,-450.0,0.00013698,2]
[361390116,1747547448986,-450.0,0.00013698,2]
[361390117,1747547448996,-450.0,0.00013698,2]
[361390118,1747547449006,-400.0,0.00013698,2]
[361390119,1747547449015,-450.0,0.00013698,2]
[361390120,1747547449024,-400.0,0.00013698,2]
[361390121,1747547449033,-450.0,0.00013698,2]
[361390122,1747547449042,-400.0,0.00013698,2]
[361390123,1747547449052,-450.0,0.00013698,2]
[361390124,1747547449061,-403.03608308,0.00013698,2]
[361390125,1747547449070,-350.0,0.00013698,2]
[361390126,1747547449079,-450.0,0.00013698,2]
[361390127,1747547449089,-450.0,0.00013698,2]
[361390128,1747547449098,-450.0,0.00013698,2]
[361390129,1747547449108,-450.0,0.00013698,2]
[361390130,1747547449117,-410.7358574,0.00013698,2]
[361390131,1747547449126,-450.0,0.00013698,2]
[361390132,1747547449135,-458.61,0.00013698,2]
[361390133,1747547449144,-450.0,0.00013698,2]
[361390134,1747547449153,-408.74802277,0.00013698,2]
[361390135,1747547449162,-488.83997543,0.00013698,2]
[361390136,1747547449171,-400.90062376,0.00013698,2]
[361390137,1747547449180,-450.0,0.00013698,2]
[361390138,1747547449189,-450.0,0.00013698,2]
[361390139,1747547449198,-400.88045351,0.00013698,2]
[361390140,1747547449207,-267.551072,0.00013698,2]
[361390141,1747547449216,-400.0,0.00013698,2]
[361390142,1747547449225,-450.0,0.00013698,2]
[361390143,1747547449235,-450.0,0.00013698,2]
[361390144,1747547449244,-450.0,0.00013698,2]
[361390145,1747547449253,-400.0,0.00013698,2]
[361390146,1747547449261,-400.0,0.00013698,2]
[361390147,1747547449269,-210.9654761,0.00013698,2]
[361390148,1747547449278,-400.0,0.00013698,2]
[361390149,1747547449287,-450.0,0.00013698,2]
[361390150,1747547449297,-400.0,0.00013698,2]
[361390151,1747547449306,-450.0,0.00013698,2]
[361390152,1747547449315,-450.0,0.00013698,2]
[361390153,1747547449324,-400.0,0.00013698,2]
[361390154,1747547449334,-406.4275544,0.00013698,2]
[361390155,1747547449343,-467.79,0.00013698,2]
[361390156,1747547449352,-424.57739151,0.00013698,2]
[361390157,1747547449361,-265.74534492,0.00013698,2]
[361390158,1747547449371,-450.0,0.00013698,2]
[361390159,1747547449380,-450.0,0.00013698,2]
[361390160,1747547449389,-450.0,0.00013698,2]
[361390161,1747547449398,-400.0,0.00013698,2]
[361390162,1747547449408,-450.0,0.00013698,2]
[361390163,1747547449417,-450.0,0.00013698,2]
[361390164,1747547449426,-536.44766615,0.00013698,2]
[361390165,1747547449434,-450.0,0.00013698,2]
[361390166,1747547449443,-381.16939089,0.00013698,2]
[361390167,1747547449452,-400.0,0.00013698,2]
[361390168,1747547449461,-450.0,0.00013698,2]
[361390169,1747547449469,-450.0,0.00013698,2]
[361390170,1747547449478,-450.0,0.00013698,2]
[361390171,1747547449487,-450.0,0.00013698,2]
[361390172,1747547449496,-450.0,0.00013698,2]
[361390173,1747547449505,-400.0,0.00013698,2]
[361390174,1747547449514,-450.0,0.00013698,2]
[361390175,1747547449524,-400.0,0.00013698,2]
[361390176,1747547449532,-261.39583571,0.00013698,2]
[361390177,1747547449541,-450.0,0.00013698,2]
[361390178,1747547449554,-450.0,0.00013698,2]
[361390179,1747547449563,-450.0,0.00013698,2]
[361390180,1747547449573,-450.0,0.00013698,2]
[361390181,1747547449583,-254.3279369,0.00013698,2]
[361390182,1747547449593,-439.97627564,0.00013698,2]
[361390183,1747547449603,-500.0,0.00013698,2]
[361390184,1747547449612,-500.0,0.00013698,2]
[361390185,1747547449621,-523.45266689,0.00013698,2]
[361390186,1747547449632,-500.0,0.00013698,2]
[361390187,1747547449641,-351.86954123,0.00013698,2]
[361390188,1747547449651,-500.0,0.00013698,2]
[361390189,1747547449661,-500.0,0.00013698,2]
[361390190,1747547449670,-500.0,0.00013698,2]
[361390191,1747547449680,-450.0,0.00013698,2]
[361390192,1747547449689,-500.0,0.00013698,2]
[361390193,1747547449698,-209.563211,0.00013698,2]
[361390194,1747547449707,-209.563211,0.00013698,2]
[361390195,1747547449717,-209.563211,0.00013698,2]
[361390196,1747547449726,-209.563211,0.00013698,2]
[361390197,1747547449735,-209.563211,0.00013698,2]
[361390198,1747547449745,-209.563211,0.00013698,2]
[361390199,1747547449754,-209.563211,0.00013698,2]
[361390200,1747547449763,-209.563211,0.00013698,2]
[361390201,1747547449773,-209.563211,0.00013698,2]
[361390202,1747547449782,-209.563211,0.00013698,2]
[361390203,1747547449792,-209.563211,0.00013698,2]
[361390204,1747547449802,-209.563211,0.00013698,2]
[361390205,1747547449811,-450.0,0.00013698,2]
[361390206,1747547449821,-209.563211,0.00013698,2]
[361390207,1747547449830,-209.563211,0.00013698,2]
[361390208,1747547449839,-209.563211,0.00013698,2]
[361390209,1747547449848,-209.563211,0.00013698,2]
[361390210,1747547449857,-209.563211,0.00013698,2]
[361390211,1747547449866,-209.563211,0.00013698,2]
[361390212,1747547449875,-209.563211,0.00013698,2]
[361390213,1747547449885,-209.563206,0.00013698,2]
[361390214,1747547449896,-151.0,0.00013699,2]
[361390215,1747547449906,-151.0,0.00013699,2]
[361390216,1747547449915,-151.0,0.00013699,2]
[361390217,1747547449924,-151.0,0.00013699,2]
[361390218,1747547449934,-212.51503,0.00013699,2]
[361390219,1747547449943,-205.588181,0.00013699,2]
[361390220,1747547449951,-205.721737,0.00013699,2]
[361390221,1747547449960,-205.721737,0.00013699,2]
[361390222,1747547449969,-205.721737,0.00013699,2]
[361390223,1747547449978,-205.721737,0.00013699,2]
[361390224,1747547449987,-151.0,0.00013699,2]
[361390225,1747547449997,-151.0,0.00013699,2]
[361390226,1747547450007,-151.0,0.00013699,2]
[361390227,1747547450015,-151.0,0.00013699,2]
[361390228,1747547450024,-151.0,0.00013699,2]
[361390229,1747547450034,-173.398846,0.00013699,2]
[361390230,1747547450043,-201.180991,0.00013699,2]
[361390231,1747547450052,-500.0,0.00013699,2]
[361390232,1747547450062,-500.0,0.00013699,2]
[361390233,1747547450071,-500.0,0.00013699,2]
[361390234,1747547450080,-500.0,0.00013699,2]
[361390235,1747547450090,-500.0,0.00013699,2]
[361390236,1747547450099,-500.0,0.00013699,2]
[361390237,1747547450108,-500.0,0.00013699,2]
[361390238,1747547450117,-500.0,0.00013699,2]
[361390239,1747547450126,-566.05898597,0.00013699,2]
[361390240,1747547450136,-500.0,0.00013699,2]
[361390241,1747547450144,-500.0,0.00013699,2]
[361390242,1747547450154,-500.0,0.00013699,2]
[361390243,1747547450163,-500.0,0.00013699,2]
[361390244,1747547450173,-437.227165,0.00013699,2]
[361390245,1747547450183,-437.227165,0.00013699,2]
[361390246,1747547450192,-784.518206,0.00013699,2]
[361390247,1747547450202,-784.518206,0.00013699,2]
[361390248,1747547450211,-420.0,0.00013715,2]
[361390249,1747547450221,-151.0,0.00013748,2]
[361390250,1747547450231,-499.0,0.00013748,2]
[361390251,1747547450241,-151.0,0.00013821,2]
[361390252,1747547450250,-207.046758,0.00013821,2]
[361390253,1747547450260,-207.046758,0.00013821,2]
[361390254,1747547450269,-2942.17258085,0.00013835,3]
[361390255,1747547450278,-45566.01314132,0.00013835,2]
[361390256,1747547450287,-450.0,0.00013835,2]
[361390257,1747547450296,-450.0,0.00013835,2]
[361390258,1747547450305,-450.0,0.00013835,2]
[361390259,1747547450315,-450.0,0.00013835,2]
[361390260,1747547450324,-151.0,0.00013835,2]
[361390261,1747547450448,-476.9,0.00013835,2]
[361390262,1747547450458,-320.06025092,0.00013835,2]
[361390263,1747547450467,-450.0,0.00013835,2]
[361390264,1747547450476,-450.0,0.00013835,2]
[361390265,1747547450486,-450.0,0.00013835,2]
[361390266,1747547450495,-450.0,0.00013835,2]
[361390267,1747547450505,-450.0,0.00013835,2]
[361390268,1747547450515,-450.0,0.00013835,2]
[361390269,1747547450524,-545.51478682,0.00013835,2]
[361390270,1747547450534,-450.0,0.00013835,2]
[361390271,1747547450543,-207.046758,0.00013835,2]
[361390272,1747547450557,-207.046758,0.00013835,2]
[361390273,1747547450566,-450.0,0.00013835,2]
[361390274,1747547450576,-253.69505738,0.00013835,2]
[361390275,1747547450585,-207.046758,0.00013835,2]
[361390276,1747547450595,-207.046758,0.00013835,2]
[361390277,1747547450604,-450.0,0.00013835,2]
[361390278,1747547450614,-450.0,0.00013835,2]
[361390279,1747547450623,-493.62,0.00013835,2]
[361390280,1747547450634,-151.0,0.00013835,2]
[361390281,1747547450644,-151.0,0.00013835,2]
[361390282,1747547450653,-151.0,0.00013835,2]
[361390283,1747547450661,-492.12,0.00013835,2]
[361390284,1747547450670,-172.43,0.00013835,2]
[361390285,1747547450680,-450.0,0.00013835,2]
[361390286,1747547450689,-162.03,0.00013835,2]
[361390287,1747547450698,-330.28,0.00013835,2]
[361390288,1747547450707,-450.0,0.00013835,2]
[361390289,1747547450717,-450.0,0.00013835,2]
[361390290,1747547450727,-450.0,0.00013835,2]
[361390291,1747547450736,-409.24339771,0.00013835,2]
[361390292,1747547450746,-450.0,0.00013835,2]
[361390293,1747547450755,-450.0,0.00013835,2]
[361390294,1747547450764,-410.25,0.00013835,2]
[361390295,1747547450773,-450.0,0.00013835,2]
[361390296,1747547450783,-450.0,0.00013835,2]
[361390297,1747547450792,-151.0,0.00013835,2]
[361390298,1747547450802,-281.12301715,0.00013835,2]
[361390299,1747547450812,-235.857822,0.00013835,2]
[361390300,1747547450821,-450.0,0.00013835,2]
[361390301,1747547450831,-235.85782,0.00013835,2]
[361390302,1747547450842,-450.0,0.00013835,2]
[361390303,1747547450853,-450.0,0.00013835,2]
[361390304,1747547450863,-450.0,0.00013835,2]
[361390305,1747547450872,-450.0,0.00013835,2]
[361390306,1747547450882,-450.0,0.00013835,2]
[361390307,1747547450893,-450.0,0.00013835,2]
[361390308,1747547450903,-450.0,0.00013835,2]
[361390309,1747547450912,-536.53,0.00013835,2]
[361390310,1747547450922,-450.0,0.00013835,2]
[361390311,1747547450931,-450.0,0.00013835,2]
[361390312,1747547450940,-453.64,0.00013835,2]
[361390313,1747547450949,-171.33,0.00013835,2]
[361390314,1747547450958,-302.869616,0.00013835,2]
[361390315,1747547450968,-302.869609,0.00013835,2]
[361390316,1747547450978,-450.0,0.00013835,2]
[361390317,1747547450987,-324.54,0.00013835,2]
[361390318,1747547450997,-450.0,0.00013835,2]
[361390319,1747547451007,-437.227165,0.00013835,2]
[361390320,1747547451016,-437.227165,0.00013835,2]
[361390321,1747547451027,-450.0,0.00013835,2]
[361390322,1747547451037,-450.0,0.00013835,2]
[361390323,1747547451046,-437.227165,0.00013835,2]
[361390324,1747547451055,-437.227171,0.00013835,2]
[361390325,1747547451065,-450.0,0.00013835,2]
[361390326,1747547451074,-450.0,0.00013835,2]
[361390327,1747547451083,-450.0,0.00013835,2]
[361390328,1747547451092,-350.52284534,0.00013835,2]
[361390329,1747547451101,-174.38,0.00013835,2]
[361390330,1747547451111,-450.0,0.00013835,2]
[361390331,1747547451120,-196.11,0.00013835,2]
[361390332,1747547451129,-450.0,0.00013835,2]
[361390333,1747547451138,-170.92,0.00013835,2]
[361390334,1747547451147,-450.0,0.00013835,2]
[361390335,1747547451157,-450.0,0.00013835,2]
[361390336,1747547451166,-450.0,0.00013835,2]
[361390337,1747547451175,-350.0,0.00013835,2]
[361390338,1747547451183,-258.53,0.00013835,2]
[361390339,1747547451192,-232.9,0.00013835,2]
[361390340,1747547451201,-300.69,0.00013835,2]
[361390341,1747547451210,-784.518206,0.00013835,2]
[361390342,1747547451220,-450.0,0.00013835,2]
[361390343,1747547451229,-450.0,0.00013835,2]
[361390344,1747547451239,-343.02,0.00013835,2]
[361390345,1747547451248,-784.51821174,0.00013835,2]
[361390346,1747547451257,-450.0,0.00013835,2]
[361390347,1747547451267,-450.0,0.00013835,2]
[361390348,1747547451276,-450.0,0.00013835,2]
[361390349,1747547451285,-366.69,0.00013835,2]
[361390350,1747547451293,-441.58444995,0.00013835,2]
[361390351,1747547451303,-450.0,0.00013835,2]
[361390352,1747547451312,-317.32,0.00013835,2]
[361390353,1747547451321,-450.0,0.00013835,2]
[361390354,1747547451330,-205.67,0.00013835,2]
[361390355,1747547451339,-450.0,0.00013835,2]
[361390356,1747547451348,-450.0,0.00013835,2]
[361390357,1747547451358,-333.54,0.00013835,2]
[361390358,1747547451367,-450.0,0.00013835,2]
[361390359,1747547451376,-596.91,0.00013835,2]
[361390360,1747547451385,-450.0,0.00013835,2]
[361390361,1747547451395,-450.0,0.00013835,2]
[361390362,1747547451404,-570.2,0.00013835,2]
[361390363,1747547451413,-350.0,0.00013835,2]
[361390364,1747547451422,-350.0,0.00013835,2]
[361390365,1747547451432,-350.0,0.00013835,2]
[361390366,1747547451441,-350.0,0.00013835,2]
[361390367,1747547451450,-443.38,0.00013835,2]
[361390368,1747547451460,-256.61,0.00013835,2]
[361390369,1747547451469,-450.0,0.00013835,2]
[361390370,1747547451479,-450.0,0.00013835,2]
[361390371,1747547451488,-450.0,0.00013835,2]
[361390372,1747547451498,-450.0,0.00013835,2]
[361390373,1747547451507,-450.0,0.00013835,2]
[361390374,1747547451518,-450.0,0.00013835,2]
[361390375,1747547451527,-400.0,0.00013835,2]
[361390376,1747547451536,-591.08,0.00013835,2]
[361390377,1747547451547,-473.13,0.00013835,2]
[361390378,1747547451558,-450.0,0.00013835,2]
[361390379,1747547451568,-450.0,0.00013835,2]
[361390380,1747547451577,-450.0,0.00013835,2]
[361390381,1747547451586,-450.0,0.00013835,2]
[361390382,1747547451596,-450.0,0.00013835,2]
[361390383,1747547451605,-450.0,0.00013835,2]
[361390384,1747547451615,-450.0,0.00013835,2]
[361390385,1747547451627,-450.0,0.00013835,2]
[361390386,1747547451637,-450.0,0.00013835,2]
[361390387,1747547451647,-450.0,0.00013835,2]
[361390388,1747547451656,-546.49,0.00013835,2]
[361390389,1747547451666,-450.0,0.00013835,2]
[361390390,1747547451675,-450.0,0.00013835,2]
[361390391,1747547451684,-450.0,0.00013835,2]
[361390392,1747547451692,-400.0,0.00013835,2]
[361390393,1747547451702,-400.0,0.00013835,2]
[361390394,1747547451711,-458.61,0.00013835,2]
[361390395,1747547451720,-244.63030653,0.00013835,2]
[361390396,1747547451730,-350.0,0.00013835,2]
[361390397,1747547451740,-481.16,0.00013835,2]
[361390398,1747547451749,-450.0,0.00013835,2]
[361390399,1747547451759,-291.13,0.00013835,2]
[361390400,1747547451768,-450.0,0.00013835,2]
[361390401,1747547451777,-450.0,0.00013835,2]
[361390402,1747547451787,-340.15,0.00013835,2]
[361390403,1747547451796,-409.65,0.00013835,2]
[361390404,1747547451805,-450.0,0.00013835,2]
[361390405,1747547451815,-450.0,0.00013835,2]
[361390406,1747547451824,-450.0,0.00013835,2]
[361390407,1747547451833,-450.0,0.00013835,2]
[361390408,1747547451843,-450.0,0.00013835,2]
[361390409,1747547451852,-519.5709036,0.000139,2]
[361390410,1747547451862,-151.0,0.00013972,2]
[361390411,1747547451871,-164.539928,0.00013972,2]
[361390412,1747547451881,-205.721737,0.00013972,2]
[361390413,1747547451889,-205.721737,0.00013972,2]
[361390414,1747547451899,-207.046758,0.00013972,2]
[361390415,1747547451907,-207.046768,0.00013972,2]
[361390416,1747547451916,-450.0,0.00013972,2]
[361390417,1747547451926,-425.68,0.00013972,2]
[361390418,1747547451935,-243.72,0.00013972,2]
[361390419,1747547451944,-450.0,0.00013972,2]
[361390420,1747547451956,-450.0,0.00013972,2]
[361390421,1747547451967,-450.0,0.00013972,2]
[361390422,1747547451979,-243.44,0.00013972,2]
[361390423,1747547451988,-450.0,0.00013972,2]
[361390424,1747547451998,-193.11,0.00013972,2]
[361390425,1747547452007,-450.0,0.00013972,2]
[361390426,1747547452017,-450.0,0.00013972,2]
[361390427,1747547452026,-354.94,0.00013972,2]
[361390428,1747547452036,-239.33,0.00013972,2]
[361390429,1747547452045,-450.0,0.00013972,2]
[361390430,1747547452054,-450.0,0.00013972,2]
[361390431,1747547452063,-450.0,0.00013972,2]
[361390432,1747547452072,-457.37818197,0.00013972,2]
[361390433,1747547452081,-436.64,0.00013972,2]
[361390434,1747547452091,-450.0,0.00013972,2]
[361390435,1747547452100,-241.97,0.00013972,2]
[361390436,1747547452109,-450.0,0.00013972,2]
[361390437,1747547452118,-450.0,0.00013972,2]
[361390438,1747547452127,-357.75,0.00013972,2]
[361390439,1747547452138,-450.0,0.00013972,2]
[361390440,1747547452148,-450.0,0.00013972,2]
[361390441,1747547452158,-422.24,0.00013972,2]
[361390442,1747547452168,-450.0,0.00013972,2]
[361390443,1747547452177,-450.0,0.00013972,2]
[361390444,1747547452187,-458.61,0.00013972,2]
[361390445,1747547452196,-450.0,0.00013972,2]
[361390446,1747547452205,-479.33,0.00013972,2]
[361390447,1747547452214,-188.17,0.00013972,2]
[361390448,1747547452223,-450.0,0.00013972,2]
[361390449,1747547452232,-450.0,0.00013972,2]
[361390450,1747547452242,-450.0,0.00014109,2]
[361390451,1747547452251,-450.0,0.00014109,2]
[361390452,1747547452260,-450.0,0.00014109,2]
[361390453,1747547452270,-450.0,0.00014109,2]
[361390454,1747547452280,-450.0,0.00014109,2]
[361390455,1747547452289,-450.0,0.00014109,2]
[361390456,1747547452298,-154.07,0.00014109,2]
[361390457,1747547452308,-450.0,0.00014109,2]
[361390458,1747547452317,-450.0,0.00014109,2]
[361390459,1747547452327,-450.0,0.00014109,2]
[361390460,1747547452336,-450.0,0.00014109,2]
[361390461,1747547452346,-450.0,0.00014109,2]
[361390462,1747547452355,-450.0,0.00014109,2]
[361390463,1747547452365,-248.22,0.00014109,2]
[361390464,1747547452374,-450.0,0.00014109,2]
[361390465,1747547452383,-450.0,0.00014109,2]
[361390466,1747547452392,-450.0,0.00014109,2]
[361390467,1747547452401,-458.61,0.00014109,2]
[361390468,1747547452410,-332.29,0.00014109,2]
[361390469,1747547452419,-450.0,0.00014109,2]
[361390470,1747547452429,-190.54,0.00014109,2]
[361390471,1747547452438,-12636.50182523,0.00014152,2]
[361390472,1747547452447,-160.0,0.00014152,2]
[361390473,1747547452456,-160.0,0.00014152,2]
[361390474,1747547452465,-151.0,0.00014246,2]
[361390475,1747547452474,-460.66,0.00014246,2]
[361390476,1747547452484,-450.0,0.00014246,2]
[361390477,1747547452494,-184.28,0.00014246,2]
[361390478,1747547452503,-450.0,0.00014246,2]
[361390479,1747547452512,-450.0,0.00014246,2]
[361390480,1747547452522,-450.0,0.00014246,2]
[361390481,1747547452532,-450.0,0.00014246,2]
[361390482,1747547452541,-450.0,0.00014246,2]
[361390483,1747547452554,-450.0,0.00014246,2]
[361390484,1747547452564,-450.0,0.00014246,2]
[361390485,1747547452573,-325.52,0.00014246,2]
[361390486,1747547452583,-450.0,0.00014246,2]
[361390487,1747547452592,-450.0,0.00014246,2]
[361390488,1747547452602,-450.0,0.00014246,2]
[361390489,1747547452612,-450.0,0.00014246,2]
[361390490,1747547452622,-458.61,0.00014246,2]
[361390491,1747547452631,-277.24,0.00014246,2]
[361390492,1747547452640,-519.57090344,0.00014314,2]
[361390493,1747547452650,-417.68,0.00014383,2]
[361390494,1747547452659,-556.64,0.00014383,2]
[361390495,1747547452668,-210.94,0.00014383,2]
[361390496,1747547452678,-450.0,0.00014383,2]
[361390497,1747547452689,-357.32,0.00014383,2]
[361390498,1747547452698,-364.96047177,0.00014383,2]
[361390499,1747547452708,-162.5,0.00014383,2]
[361390500,1747547452718,-179.67,0.00014383,2]
[361390501,1747547452727,-450.0,0.00014383,2]
[361390502,1747547452738,-450.0,0.00014383,2]
[361390503,1747547452747,-450.0,0.00014383,2]
[361390504,1747547452757,-450.0,0.00014383,2]
[361390505,1747547452767,-458.61,0.00014383,2]
[361390506,1747547452776,-450.0,0.0001452,2]
[361390507,1747547452786,-450.0,0.0001452,2]
[361390508,1747547452795,-450.0,0.0001452,2]
[361390509,1747547452805,-450.0,0.0001452,2]
[361390510,1747547452814,-450.0,0.0001452,2]
[361390511,1747547452823,-458.61,0.0001452,2]
[361390512,1747547452833,-254.37563135,0.00014525,2]
[361390513,1747547452842,-450.0,0.00014657,2]
[361390514,1747547452852,-450.0,0.00014657,2]
[361390515,1747547452861,-492.86,0.00014657,2]
[361390516,1747547452870,-450.0,0.00014657,2]
[361390517,1747547452879,-450.0,0.00014657,2]
[361390518,1747547452889,-458.61,0.00014657,2]
[361390519,1747547452899,-519.57090344,0.00014728,2]
[361390520,1747547452908,-450.0,0.00014794,2]
[361390521,1747547452918,-450.0,0.00014794,2]
[361390522,1747547452928,-450.0,0.00014794,2]
[361390523,1747547452940,-336.66,0.00014794,2]
[361390524,1747547452949,-458.61,0.00014794,2]
[361390525,1747547452959,-450.0,0.00014931,2]
[361390526,1747547452968,-450.0,0.00014931,2]
[361390527,1747547452978,-450.0,0.00014931,2]
[361390528,1747547452988,-458.61,0.00014931,2]
[361390529,1747547452998,-587.0,0.00015048,2]
[361390530,1747547453007,-160.0,0.00015068,2]
[361390531,1747547453017,-450.0,0.00015068,2]
[361390532,1747547453026,-450.0,0.00015068,2]
[361390533,1747547453035,-450.0,0.00015068,2]
[361390534,1747547453044,-458.61,0.00015068,2]
[361390535,1747547453054,-519.57090344,0.00015141,2]
[361390536,1747547453063,-434.82,0.00015205,2]
[361390537,1747547453073,-450.0,0.00015205,2]
[361390538,1747547453082,-288.14,0.00015205,2]
[361390539,1747547453091,-458.61,0.00015205,2]
[361390540,1747547453100,-450.0,0.00015342,2]
[361390541,1747547453223,-458.61,0.00015342,2]
[361390542,1747547453235,-450.0,0.00015479,2]
[361390543,1747547453245,-458.61,0.00015479,2]
[361390544,1747547453254,-519.57090344,0.00015555,2]
[361390545,1747547453263,-450.0,0.00015616,2]
[361390546,1747547453272,-458.61,0.00015616,2]
[361390547,1747547453281,-3886.62346358,0.00015653,2]
[361390548,1747547453291,-305.04253034,0.00015753,2]
[361390549,1747547453413,-144.95746966,0.00015753,2]
[361390550,1747547453424,-458.61,0.00015753,2]
[361390551,1747547453435,-254.14,0.0001589,2]
[361390552,1747547453444,-458.61,0.0001589,2]
[361390553,1747547453455,-519.57090344,0.00015969,2]
[361390554,1747547453465,-458.61,0.00016027,2]
[361390555,1747547453476,-730.69430108,0.00016058,2]
[361390583,1747548573383,-246.59637813,0.00012896,2]
[361390584,1747548603011,-217.51099939,0.00012767,2]
[361390585,1747548604788,-172.58301585,0.00012767,2]
[361390586,1747548606643,-226.02228794,0.00012767,2]
[361390587,1747548608302,-193.85438719,0.00012767,2]
[361390588,1747548609799,-191.19989811,0.00012767,2]
[361390631,1747548636467,-3489.47116348,0.00012767,2]
[361390650,1747548640831,-0.00378588,0.00012767,2]
[361390658,1747548643648,-509.35446216,0.00012767,2]
[361390659,1747548643657,-300.0,0.00013697,2]
[361390660,1747548643667,-154.553268,0.00013698,2]
[361390661,1747548643676,-151.0,0.00013698,2]
[361390662,1747548643685,-151.0,0.00013698,2]
[361390663,1747548643695,-151.0,0.00013698,2]
[361390664,1747548643704,-151.0,0.00013698,2]
[361390665,1747548643713,-152.148387,0.00013698,2]
[361390666,1747548643722,-411.37266248,0.00013698,2]
[361390667,1747548643732,-400.0,0.00013698,2]
[361390669,1747548643742,-400.0,0.00013698,2]
[361390671,1747548643751,-334.28597022,0.00013698,2]
[361390673,1747548643760,-400.0,0.00013698,2]
[361390675,1747548643771,-450.0,0.00013698,2]
[361390677,1747548643780,-201.44,0.00013698,2]
[361390679,1747548643789,-450.0,0.00013698,2]
[361390681,1747548643799,-450.0,0.00013698,2]
[361390683,1747548643809,-450.0,0.00013698,2]
[361390684,1747548643818,-450.0,0.00013698,2]
[361390685,1747548643827,-450.0,0.00013698,2]
[361390686,1747548643837,-450.0,0.00013698,2]
[361390687,1747548643846,-450.0,0.00013698,2]
[361390688,1747548643855,-450.0,0.00013698,2]
[361390689,1747548643865,-450.0,0.00013698,2]
[361390690,1747548643875,-450.0,0.00013698,2]
[361390691,1747548643884,-450.0,0.00013698,2]
[361390692,1747548643893,-450.0,0.00013698,2]
[361390693,1747548643903,-450.0,0.00013698,2]
[361390694,1747548643912,-450.0,0.00013698,2]
[361390695,1747548643922,-194.19443413,0.00013698,2]
[361390696,1747548643931,-151.0,0.00013699,2]
[361390697,1747548643941,-151.0,0.00013699,2]
[361390698,1747548643951,-151.0,0.00013699,2]
[361390699,1747548643960,-151.0,0.00013699,2]
[361390700,1747548643970,-151.0,0.00013699,2]
[361390701,1747548643979,-151.0,0.00013699,2]
[361390702,1747548643988,-151.0,0.00013699,2]
[361390703,1747548643998,-151.0,0.00013699,2]
[361390704,1747548644009,-195.308771,0.00013699,2]
[361390705,1747548644018,-450.0,0.00013835,2]
[361390706,1747548644028,-480.70497653,0.000139,2]
[361390707,1747548644037,-450.0,0.00013972,2]
[361390708,1747548644049,-450.0,0.00014109,2]
[361390709,1747548644059,-212.32903618,0.00014162,2]
[361390710,1747548644069,-160.0,0.00014162,2]
[361390711,1747548644078,-160.0,0.00014162,2]
[361390712,1747548644089,-450.0,0.00014246,2]
[361390713,1747548644098,-480.70497631,0.00014314,2]
[361390714,1747548644107,-501.7100504,0.00014383,2]
[361390715,1747548644117,-212.62804652,0.00014714,2]
[361390716,1747548644128,-480.70497631,0.00014728,2]